[Event "Titled Tuesday Blitz May 9 Late 2023"]
[White "Rodshtein, Maxim"]
[Black "Hnydiuk, Aleksander"]
[WhiteFideId "2806851"]
[BlackFideId "1109057"]
[WhiteElo "2555"]
[BlackElo "2374"]
[Result "1-0"]
[Round "04"]
[TimeControl "180+2"]
[Date "2023.05.09"]
[WhiteClock "0:01:56"]
[BlackClock "0:00:04"]

1. e4 {[%clk 0:02:58]}  Nf6 {[%clk 0:02:57]} 2. e5 {[%clk 0:02:56]}  Nd5 {[%clk 0:02:57]} 3. d4 {[%clk 0:02:56]}  d6 {[%clk 0:02:57]} 4. Nf3 {[%clk 0:02:56]}  dxe5 {[%clk 0:02:57]} 5. Nxe5 {[%clk 0:02:56]}  c6 {[%clk 0:02:57]} 6. Be2 {[%clk 0:02:53]}  Bf5 {[%clk 0:02:56]} 7. O-O {[%clk 0:02:52]}  Nd7 {[%clk 0:02:56]} 8. c4 {[%clk 0:02:48]}  N5f6 {[%clk 0:02:48]} 9. Nf3 {[%clk 0:02:43]}  e6 {[%clk 0:02:46]} 10. Nc3 {[%clk 0:02:43]}  Bd6 {[%clk 0:02:38]} 11. Nh4 {[%clk 0:02:42]}  Bg6 {[%clk 0:02:31]} 12. Be3 {[%clk 0:02:41]}  O-O {[%clk 0:02:29]} 13. Qb3 {[%clk 0:02:38]}  Qc7 {[%clk 0:02:24]} 14. g3 {[%clk 0:02:38]}  Rfe8 {[%clk 0:02:16]} 15. Nxg6 {[%clk 0:02:37]}  hxg6 {[%clk 0:02:17]} 16. Rad1 {[%clk 0:02:34]}  e5 {[%clk 0:02:13]} 17. c5 {[%clk 0:02:33]}  Bf8 {[%clk 0:02:10]} 18. Bc4 {[%clk 0:02:32]}  Re7 {[%clk 0:02:02]} 19. d5 {[%clk 0:02:24]}  cxd5 {[%clk 0:02:01]} 20. Nxd5 {[%clk 0:02:19]}  Nxd5 {[%clk 0:02:00]} 21. Rxd5 {[%clk 0:02:20]}  Nf6 {[%clk 0:01:52]} 22. Rd6 {[%clk 0:02:14]}  Ng4 {[%clk 0:01:51]} 23. Rxg6 {[%clk 0:02:11]}  Nxe3 {[%clk 0:00:34]} 24. Qxe3 {[%clk 0:02:12]}  Rd7 {[%clk 0:00:22]} 25. Rg5 {[%clk 0:02:09]}  Bxc5 {[%clk 0:00:20]} 26. Qxe5 {[%clk 0:02:02]}  Bxf2+ {[%clk 0:00:10]} 27. Rxf2 {[%clk 0:01:57]}  Rd1+ {[%clk 0:00:04]} 28. Bf1 {[%clk 0:01:56]} 1-0


[Site "https://www.chess.com"]

[Event "Titled Tuesday Blitz May 9 Late 2023"]
[White "Bruedigam, Martin"]
[Black "Riehle, Marco"]
[WhiteFideId "24608033"]
[BlackFideId "12904392"]
[WhiteElo "2331"]
[BlackElo "2462"]
[Result "0-1"]
[Round "04"]
[TimeControl "180+2"]
[Date "2023.05.09"]
[WhiteClock "0:00:06"]
[BlackClock "0:00:48"]

1. d4 {[%clk 0:03:00]}  d5 {[%clk 0:02:58]} 2. c4 {[%clk 0:03:01]}  e6 {[%clk 0:02:58]} 3. Nc3 {[%clk 0:03:00]}  c5 {[%clk 0:02:58]} 4. cxd5 {[%clk 0:02:59]}  cxd4 {[%clk 0:02:57]} 5. Qa4+ {[%clk 0:03:00]}  Bd7 {[%clk 0:02:57]} 6. Qxd4 {[%clk 0:03:00]}  exd5 {[%clk 0:02:58]} 7. Qxd5 {[%clk 0:02:56]}  Nf6 {[%clk 0:02:57]} 8. Qd1 {[%clk 0:02:18]}  Nc6 {[%clk 0:02:57]} 9. Nf3 {[%clk 0:02:17]}  Bc5 {[%clk 0:02:56]} 10. e3 {[%clk 0:02:17]}  Qe7 {[%clk 0:02:56]} 11. Be2 {[%clk 0:02:11]}  O-O-O {[%clk 0:02:56]} 12. Qb3 {[%clk 0:02:01]}  Kb8 {[%clk 0:02:53]} 13. Bd2 {[%clk 0:01:51]}  g5 {[%clk 0:02:51]} 14. O-O-O {[%clk 0:01:27]}  g4 {[%clk 0:02:47]} 15. Ne1 {[%clk 0:01:21]}  Bf5 {[%clk 0:02:38]} 16. Nc2 {[%clk 0:01:08]}  Rd7 {[%clk 0:02:20]} 17. Qa4 {[%clk 0:01:08]}  Rc8 {[%clk 0:02:18]} 18. Qf4+ {[%clk 0:01:08]}  Qe5 {[%clk 0:02:16]} 19. Qxe5+ {[%clk 0:01:03]}  Nxe5 {[%clk 0:02:17]} 20. e4 {[%clk 0:00:49]}  Nxe4 {[%clk 0:02:13]} 21. Bf4 {[%clk 0:00:49]}  Rxd1+ {[%clk 0:01:57]} 22. Rxd1 {[%clk 0:00:42]}  f6 {[%clk 0:01:55]} 23. Ne3 {[%clk 0:00:37]}  Bxe3+ {[%clk 0:01:36]} 24. fxe3 {[%clk 0:00:36]}  Nxc3 {[%clk 0:01:36]} 25. bxc3 {[%clk 0:00:35]}  Rxc3+ {[%clk 0:01:37]} 26. Kd2 {[%clk 0:00:35]}  Rc2+ {[%clk 0:01:31]} 27. Ke1 {[%clk 0:00:35]}  Kc7 {[%clk 0:01:31]} 28. a4 {[%clk 0:00:29]}  Be6 {[%clk 0:01:23]} 29. Rd4 {[%clk 0:00:19]}  h5 {[%clk 0:01:21]} 30. Re4 {[%clk 0:00:16]}  Kd6 {[%clk 0:01:18]} 31. Rd4+ {[%clk 0:00:17]}  Ke7 {[%clk 0:01:18]} 32. Re4 {[%clk 0:00:16]}  Bd5 {[%clk 0:01:18]} 33. Rb4 {[%clk 0:00:14]}  Bxg2 {[%clk 0:01:14]} 34. e4 {[%clk 0:00:15]}  b6 {[%clk 0:01:10]} 35. a5 {[%clk 0:00:14]}  Bf3 {[%clk 0:01:07]} 36. Ba6 {[%clk 0:00:12]}  Nc6 {[%clk 0:00:56]} 37. Rb5 {[%clk 0:00:09]}  Be2 {[%clk 0:00:49]} 38. Rxh5 {[%clk 0:00:09]}  Bxa6 {[%clk 0:00:49]} 39. axb6 {[%clk 0:00:06]}  axb6 {[%clk 0:00:48]} 0-1


[Site "https://www.chess.com"]

[Event "Titled Tuesday Blitz May 9 Late 2023"]
[White "Atanasov, Anthony"]
[Black "Sattarov, Bobir"]
[WhiteFideId "2623897"]
[BlackFideId "14203081"]
[WhiteElo "2326"]
[BlackElo "2351"]
[Result "0-1"]
[Round "04"]
[TimeControl "180+2"]
[Date "2023.05.09"]
[WhiteClock "0:00:43"]
[BlackClock "0:01:00"]

1. d4 {[%clk 0:03:00]}  Nf6 {[%clk 0:03:00]} 2. Nf3 {[%clk 0:02:55]}  d5 {[%clk 0:02:59]} 3. c3 {[%clk 0:02:49]}  c5 {[%clk 0:02:59]} 4. dxc5 {[%clk 0:02:23]}  e6 {[%clk 0:02:59]} 5. b4 {[%clk 0:02:23]}  a5 {[%clk 0:02:59]} 6. e3 {[%clk 0:02:19]}  axb4 {[%clk 0:02:56]} 7. cxb4 {[%clk 0:02:20]}  b6 {[%clk 0:02:56]} 8. Bb5+ {[%clk 0:02:18]}  Bd7 {[%clk 0:02:54]} 9. Bxd7+ {[%clk 0:02:17]}  Nfxd7 {[%clk 0:02:54]} 10. cxb6 {[%clk 0:02:15]}  Bxb4+ {[%clk 0:02:53]} 11. Bd2 {[%clk 0:02:15]}  Qxb6 {[%clk 0:02:53]} 12. O-O {[%clk 0:02:14]}  O-O {[%clk 0:02:53]} 13. Bxb4 {[%clk 0:02:13]}  Qxb4 {[%clk 0:02:54]} 14. Nbd2 {[%clk 0:02:13]}  Nc6 {[%clk 0:02:53]} 15. Qc2 {[%clk 0:02:12]}  Ra6 {[%clk 0:02:52]} 16. Rfb1 {[%clk 0:02:11]}  Qd6 {[%clk 0:02:52]} 17. a4 {[%clk 0:02:05]}  Rfa8 {[%clk 0:02:51]} 18. Qd3 {[%clk 0:01:59]}  Nc5 {[%clk 0:02:49]} 19. Qc2 {[%clk 0:01:53]}  h6 {[%clk 0:02:46]} 20. Rc1 {[%clk 0:01:47]}  Nd7 {[%clk 0:02:26]} 21. e4 {[%clk 0:01:41]}  Nb4 {[%clk 0:01:46]} 22. Qc7 {[%clk 0:01:31]}  Qxc7 {[%clk 0:01:20]} 23. Rxc7 {[%clk 0:01:32]}  Nf6 {[%clk 0:01:20]} 24. Ne5 {[%clk 0:01:27]}  Rxa4 {[%clk 0:01:17]} 25. Rxa4 {[%clk 0:01:26]}  Rxa4 {[%clk 0:01:18]} 26. exd5 {[%clk 0:01:24]}  Ra1+ {[%clk 0:01:12]} 27. Nf1 {[%clk 0:01:24]}  exd5 {[%clk 0:01:07]} 28. Rc8+ {[%clk 0:01:23]}  Kh7 {[%clk 0:01:07]} 29. Nxf7 {[%clk 0:01:24]}  Ne4 {[%clk 0:01:06]} 30. Rh8+ {[%clk 0:01:05]}  Kg6 {[%clk 0:01:06]} 31. Ne5+ {[%clk 0:01:06]}  Kf6 {[%clk 0:01:05]} 32. Nf3 {[%clk 0:01:03]}  Nd3 {[%clk 0:01:03]} 33. Rf8+ {[%clk 0:01:01]}  Ke7 {[%clk 0:01:02]} 34. Rg8 {[%clk 0:00:59]}  g5 {[%clk 0:01:01]} 35. Rg7+ {[%clk 0:00:54]}  Kf8 {[%clk 0:01:00]} 36. Rg6 {[%clk 0:00:43]}  Nf4 {[%clk 0:01:00]} 0-1


[Site "https://www.chess.com"]

[Event "Titled Tuesday Blitz May 9 Late 2023"]
[White "brm72"]
[Black "Fernandez Guillen, Ernesto J."]
[BlackFideId "3512428"]
[WhiteElo "2554"]
[BlackElo "2429"]
[Result "0-1"]
[Round "04"]
[TimeControl "180+2"]
[Date "2023.05.09"]
[WhiteClock "0:00:11"]
[BlackClock "0:00:14"]

1. e4 {[%clk 0:03:00]}  e5 {[%clk 0:02:59]} 2. Nf3 {[%clk 0:03:00]}  Nc6 {[%clk 0:02:59]} 3. d4 {[%clk 0:03:01]}  exd4 {[%clk 0:03:00]} 4. Nxd4 {[%clk 0:03:02]}  g6 {[%clk 0:02:59]} 5. Nc3 {[%clk 0:02:57]}  Bg7 {[%clk 0:02:59]} 6. Be3 {[%clk 0:02:57]}  Nge7 {[%clk 0:02:59]} 7. Qd2 {[%clk 0:02:56]}  O-O {[%clk 0:02:59]} 8. O-O-O {[%clk 0:02:56]}  d5 {[%clk 0:02:58]} 9. exd5 {[%clk 0:02:00]}  Nxd5 {[%clk 0:02:54]} 10. Nxc6 {[%clk 0:01:58]}  bxc6 {[%clk 0:02:55]} 11. Nxd5 {[%clk 0:01:58]}  cxd5 {[%clk 0:02:56]} 12. Qxd5 {[%clk 0:01:58]}  Qf6 {[%clk 0:02:56]} 13. Bd4 {[%clk 0:01:29]}  Qf4+ {[%clk 0:02:55]} 14. Be3 {[%clk 0:01:22]}  Qf6 {[%clk 0:02:55]} 15. Bd4 {[%clk 0:01:22]}  Qf4+ {[%clk 0:02:56]} 16. Be3 {[%clk 0:01:21]}  Qb4 {[%clk 0:02:55]} 17. Qb3 {[%clk 0:00:56]}  Qe7 {[%clk 0:02:24]} 18. Bc4 {[%clk 0:00:55]}  Bf5 {[%clk 0:02:23]} 19. Bd4 {[%clk 0:00:52]}  Rab8 {[%clk 0:01:12]} 20. Qg3 {[%clk 0:00:41]}  Qe4 {[%clk 0:00:47]} 21. Qc3 {[%clk 0:00:12]}  Bxd4 {[%clk 0:00:48]} 22. Rxd4 {[%clk 0:00:13]}  Qxg2 {[%clk 0:00:48]} 23. Rhd1 {[%clk 0:00:12]}  Qxf2 {[%clk 0:00:48]} 24. h4 {[%clk 0:00:09]}  h5 {[%clk 0:00:43]} 25. Kb1 {[%clk 0:00:09]}  Rbe8 {[%clk 0:00:41]} 26. Bb3 {[%clk 0:00:09]}  Bg4 {[%clk 0:00:35]} 27. Rc1 {[%clk 0:00:06]}  Re7 {[%clk 0:00:33]} 28. a3 {[%clk 0:00:07]}  Rfe8 {[%clk 0:00:32]} 29. Ra4 {[%clk 0:00:06]}  Re1 {[%clk 0:00:30]} 30. Rxe1 {[%clk 0:00:04]}  Rxe1+ {[%clk 0:00:30]} 31. Ka2 {[%clk 0:00:05]}  Qg1 {[%clk 0:00:29]} 32. Bc4 {[%clk 0:00:05]}  Re3 {[%clk 0:00:12]} 33. Qf6 {[%clk 0:00:02]}  Be6 {[%clk 0:00:12]} 34. Rb4 {[%clk 0:00:02]}  Bxc4+ {[%clk 0:00:11]} 35. Rxc4 {[%clk 0:00:03]}  Re6 {[%clk 0:00:11]} 36. Qd8+ {[%clk 0:00:03]}  Kg7 {[%clk 0:00:12]} 37. Qxc7 {[%clk 0:00:04]}  Rf6 {[%clk 0:00:12]} 38. Qc5 {[%clk 0:00:03]}  Qxc5 {[%clk 0:00:12]} 39. Rxc5 {[%clk 0:00:04]}  Rf4 {[%clk 0:00:12]} 40. Ra5 {[%clk 0:00:05]}  Rxh4 {[%clk 0:00:12]} 41. Rxa7 {[%clk 0:00:06]}  Rc4 {[%clk 0:00:12]} 42. c3 {[%clk 0:00:06]}  h4 {[%clk 0:00:12]} 43. Kb3 {[%clk 0:00:07]}  Rg4 {[%clk 0:00:12]} 44. Rd7 {[%clk 0:00:07]}  h3 {[%clk 0:00:12]} 45. Rd3 {[%clk 0:00:07]}  Rh4 {[%clk 0:00:12]} 46. Rd1 {[%clk 0:00:08]}  h2 {[%clk 0:00:12]} 47. Rh1 {[%clk 0:00:07]}  g5 {[%clk 0:00:13]} 48. a4 {[%clk 0:00:08]}  g4 {[%clk 0:00:13]} 49. a5 {[%clk 0:00:09]}  g3 {[%clk 0:00:14]} 50. a6 {[%clk 0:00:09]}  Rh6 {[%clk 0:00:15]} 51. a7 {[%clk 0:00:09]}  Ra6 {[%clk 0:00:15]} 52. Kc4 {[%clk 0:00:09]}  Rxa7 {[%clk 0:00:15]} 53. b4 {[%clk 0:00:10]}  Re7 {[%clk 0:00:15]} 54. Kc5 {[%clk 0:00:10]}  g2 {[%clk 0:00:14]} 55. c4 {[%clk 0:00:11]} 0-1


[Site "https://www.chess.com"]

[Event "Titled Tuesday Blitz May 9 Late 2023"]
[White "Holt, Conrad"]
[Black "Danielyan, Vahe"]
[WhiteFideId "2034387"]
[BlackFideId "13304828"]
[WhiteElo "2592"]
[BlackElo "2423"]
[Result "1-0"]
[Round "04"]
[TimeControl "180+2"]
[Date "2023.05.09"]
[WhiteClock "0:01:29"]
[BlackClock "0:01:12"]

1. d4 {[%clk 0:03:00]}  g6 {[%clk 0:02:58]} 2. c4 {[%clk 0:03:01]}  Bg7 {[%clk 0:02:53]} 3. Nf3 {[%clk 0:03:01]}  b6 {[%clk 0:02:53]} 4. e4 {[%clk 0:03:01]}  Bb7 {[%clk 0:02:53]} 5. Nc3 {[%clk 0:03:01]}  d6 {[%clk 0:02:53]} 6. Bd3 {[%clk 0:02:58]}  Nd7 {[%clk 0:02:54]} 7. O-O {[%clk 0:02:58]}  e5 {[%clk 0:02:54]} 8. Bg5 {[%clk 0:02:56]}  f6 {[%clk 0:02:53]} 9. Be3 {[%clk 0:02:56]}  Ne7 {[%clk 0:02:54]} 10. Qb3 {[%clk 0:02:52]}  c5 {[%clk 0:02:50]} 11. dxe5 {[%clk 0:02:50]}  fxe5 {[%clk 0:02:44]} 12. Ng5 {[%clk 0:02:49]}  Nf8 {[%clk 0:02:41]} 13. f4 {[%clk 0:02:41]}  h6 {[%clk 0:02:40]} 14. Nf3 {[%clk 0:02:33]}  exf4 {[%clk 0:02:39]} 15. Bxf4 {[%clk 0:02:34]}  Ne6 {[%clk 0:02:40]} 16. Bg3 {[%clk 0:02:30]}  O-O {[%clk 0:02:39]} 17. Nd5 {[%clk 0:02:29]}  Bxd5 {[%clk 0:02:38]} 18. exd5 {[%clk 0:02:28]}  Nd4 {[%clk 0:02:32]} 19. Nxd4 {[%clk 0:02:27]}  Bxd4+ {[%clk 0:02:33]} 20. Kh1 {[%clk 0:02:27]}  Qd7 {[%clk 0:02:34]} 21. h3 {[%clk 0:02:24]}  Rxf1+ {[%clk 0:02:28]} 22. Rxf1 {[%clk 0:02:24]}  Rf8 {[%clk 0:02:29]} 23. Re1 {[%clk 0:02:11]}  Nf5 {[%clk 0:02:28]} 24. Bxf5 {[%clk 0:02:09]}  Rxf5 {[%clk 0:02:24]} 25. Qd3 {[%clk 0:02:02]}  Kg7 {[%clk 0:02:02]} 26. b3 {[%clk 0:01:53]}  h5 {[%clk 0:01:39]} 27. Kh2 {[%clk 0:01:48]}  Be5 {[%clk 0:01:28]} 28. Bxe5+ {[%clk 0:01:46]}  dxe5 {[%clk 0:01:25]} 29. d6 {[%clk 0:01:35]}  Rf6 {[%clk 0:01:24]} 30. Rd1 {[%clk 0:01:36]}  Re6 {[%clk 0:01:24]} 31. Qd5 {[%clk 0:01:33]}  e4 {[%clk 0:01:24]} 32. Qxe6 {[%clk 0:01:31]}  Qxe6 {[%clk 0:01:24]} 33. d7 {[%clk 0:01:31]}  Qe5+ {[%clk 0:01:12]} 34. Kh1 {[%clk 0:01:29]} 1-0


[Site "https://www.chess.com"]

[Event "Titled Tuesday Blitz May 9 Late 2023"]
[White "Tanenbaum, Zachary"]
[Black "Defend1r"]
[WhiteFideId "2060850"]
[WhiteElo "2175"]
[BlackElo "2545"]
[Result "0-1"]
[Round "04"]
[TimeControl "180+2"]
[Date "2023.05.09"]
[WhiteClock "0:00:01"]
[BlackClock "0:00:21"]

1. e4 {[%clk 0:03:00]}  c5 {[%clk 0:02:59]} 2. Nf3 {[%clk 0:03:00]}  d6 {[%clk 0:02:59]} 3. d4 {[%clk 0:03:01]}  cxd4 {[%clk 0:03:00]} 4. Nxd4 {[%clk 0:03:01]}  Nf6 {[%clk 0:03:01]} 5. Nc3 {[%clk 0:03:01]}  a6 {[%clk 0:03:00]} 6. Be3 {[%clk 0:03:02]}  e5 {[%clk 0:03:01]} 7. Nb3 {[%clk 0:03:02]}  Be7 {[%clk 0:03:00]} 8. h3 {[%clk 0:03:01]}  Be6 {[%clk 0:02:58]} 9. f4 {[%clk 0:02:59]}  Qc7 {[%clk 0:02:40]} 10. Qe2 {[%clk 0:02:56]}  b5 {[%clk 0:02:31]} 11. O-O-O {[%clk 0:02:55]}  Nc6 {[%clk 0:02:22]} 12. Kb1 {[%clk 0:02:52]}  O-O {[%clk 0:02:16]} 13. f5 {[%clk 0:02:38]}  Bc4 {[%clk 0:02:14]} 14. Qf3 {[%clk 0:02:34]}  Rfb8 {[%clk 0:02:08]} 15. g4 {[%clk 0:02:14]}  Bxf1 {[%clk 0:01:54]} 16. Rhxf1 {[%clk 0:02:15]}  b4 {[%clk 0:01:54]} 17. Nd5 {[%clk 0:02:11]}  Nxd5 {[%clk 0:01:53]} 18. exd5 {[%clk 0:02:11]}  Na7 {[%clk 0:01:37]} 19. g5 {[%clk 0:02:08]}  Nb5 {[%clk 0:01:35]} 20. f6 {[%clk 0:02:03]}  Bf8 {[%clk 0:01:35]} 21. h4 {[%clk 0:01:50]}  a5 {[%clk 0:01:34]} 22. h5 {[%clk 0:00:54]}  a4 {[%clk 0:01:33]} 23. Nd2 {[%clk 0:00:52]}  Nc3+ {[%clk 0:01:19]} 24. bxc3 {[%clk 0:00:29]}  bxc3+ {[%clk 0:01:19]} 25. Ka1 {[%clk 0:00:30]}  cxd2 {[%clk 0:01:15]} 26. Bc5 {[%clk 0:00:10]}  e4 {[%clk 0:00:35]} 27. Qg3 {[%clk 0:00:04]}  Qxc5 {[%clk 0:00:35]} 28. g6 {[%clk 0:00:04]}  Qxc2 {[%clk 0:00:20]} 29. gxf7+ {[%clk 0:00:03]}  Kh8 {[%clk 0:00:20]} 30. fxg7+ {[%clk 0:00:01]}  Bxg7+ {[%clk 0:00:21]} 31. Qxg7+ {[%clk 0:00:02]}  Kxg7 {[%clk 0:00:21]} 32. f8=Q+ {[%clk 0:00:02]}  Rxf8 {[%clk 0:00:21]} 33. h6+ {[%clk 0:00:01]}  Kh8 {[%clk 0:00:21]} 0-1


[Site "https://www.chess.com"]

[Event "Titled Tuesday Blitz May 9 Late 2023"]
[White "Garcia Cuenca, Victor"]
[Black "Milikow, Yoav"]
[WhiteFideId "2250829"]
[BlackFideId "2822237"]
[WhiteElo "2329"]
[BlackElo "2410"]
[Result "0-1"]
[Round "04"]
[TimeControl "180+2"]
[Date "2023.05.09"]
[WhiteClock "0:00:00"]
[BlackClock "0:00:09"]

1. Nf3 {[%clk 0:03:00]}  d5 {[%clk 0:02:58]} 2. g3 {[%clk 0:03:00]}  g6 {[%clk 0:02:56]} 3. Bg2 {[%clk 0:03:00]}  Bg7 {[%clk 0:02:56]} 4. O-O {[%clk 0:03:01]}  e5 {[%clk 0:02:55]} 5. d3 {[%clk 0:02:57]}  Ne7 {[%clk 0:02:54]} 6. e4 {[%clk 0:02:57]}  d4 {[%clk 0:02:52]} 7. Nbd2 {[%clk 0:02:52]}  O-O {[%clk 0:02:52]} 8. Nc4 {[%clk 0:02:50]}  Nbc6 {[%clk 0:02:52]} 9. a4 {[%clk 0:02:50]}  a5 {[%clk 0:02:52]} 10. Ne1 {[%clk 0:02:36]}  Be6 {[%clk 0:02:49]} 11. b3 {[%clk 0:02:36]}  Qd7 {[%clk 0:02:44]} 12. f4 {[%clk 0:02:33]}  f6 {[%clk 0:02:26]} 13. Nf3 {[%clk 0:02:30]}  h6 {[%clk 0:02:22]} 14. Bd2 {[%clk 0:02:22]}  b6 {[%clk 0:02:16]} 15. Qe2 {[%clk 0:02:21]}  Rae8 {[%clk 0:02:13]} 16. Nh4 {[%clk 0:02:00]}  Bg4 {[%clk 0:01:58]} 17. Bf3 {[%clk 0:01:58]}  Bh3 {[%clk 0:01:57]} 18. Bg2 {[%clk 0:01:58]}  Bg4 {[%clk 0:01:56]} 19. Bf3 {[%clk 0:01:54]}  Be6 {[%clk 0:01:51]} 20. f5 {[%clk 0:01:47]}  Bxc4 {[%clk 0:01:44]} 21. dxc4 {[%clk 0:01:32]}  g5 {[%clk 0:01:45]} 22. Ng2 {[%clk 0:01:31]}  Rd8 {[%clk 0:01:41]} 23. Ne1 {[%clk 0:01:32]}  Nb4 {[%clk 0:01:38]} 24. Bxb4 {[%clk 0:01:29]}  axb4 {[%clk 0:01:39]} 25. Nd3 {[%clk 0:01:29]}  Qd6 {[%clk 0:01:37]} 26. a5 {[%clk 0:01:27]}  Ra8 {[%clk 0:01:36]} 27. axb6 {[%clk 0:01:25]}  Qxb6 {[%clk 0:01:35]} 28. c5 {[%clk 0:01:12]}  Qb5 {[%clk 0:01:34]} 29. Qd2 {[%clk 0:01:13]}  Nc6 {[%clk 0:01:31]} 30. Be2 {[%clk 0:01:06]}  Qb7 {[%clk 0:01:30]} 31. Nb2 {[%clk 0:01:06]}  Rxa1 {[%clk 0:01:19]} 32. Rxa1 {[%clk 0:01:05]}  Ra8 {[%clk 0:01:20]} 33. Rxa8+ {[%clk 0:00:53]}  Qxa8 {[%clk 0:01:21]} 34. Bc4+ {[%clk 0:00:46]}  Kh7 {[%clk 0:01:20]} 35. Nd3 {[%clk 0:00:44]}  Qa1+ {[%clk 0:01:14]} 36. Kg2 {[%clk 0:00:44]}  Qc3 {[%clk 0:00:54]} 37. Qe2 {[%clk 0:00:42]}  Ne7 {[%clk 0:00:43]} 38. c6 {[%clk 0:00:33]}  g4 {[%clk 0:00:27]} 39. h3 {[%clk 0:00:30]}  Nxc6 {[%clk 0:00:21]} 40. hxg4 {[%clk 0:00:22]}  Na5 {[%clk 0:00:19]} 41. Bf7 {[%clk 0:00:19]}  Nb7 {[%clk 0:00:17]} 42. g5 {[%clk 0:00:19]}  Nd6 {[%clk 0:00:16]} 43. Bd5 {[%clk 0:00:17]}  fxg5 {[%clk 0:00:13]} 44. Qh5 {[%clk 0:00:17]}  Qxc2+ {[%clk 0:00:13]} 45. Kh3 {[%clk 0:00:17]}  Qxd3 {[%clk 0:00:11]} 46. Qg6+ {[%clk 0:00:18]}  Kh8 {[%clk 0:00:11]} 47. f6 {[%clk 0:00:17]}  Qf1+ {[%clk 0:00:11]} 48. Kh2 {[%clk 0:00:15]}  Qf2+ {[%clk 0:00:10]} 49. Kh3 {[%clk 0:00:14]}  Qxf6 {[%clk 0:00:11]} 50. Qh5 {[%clk 0:00:12]}  Kh7 {[%clk 0:00:11]} 51. Kg2 {[%clk 0:00:09]}  Qg6 {[%clk 0:00:11]} 52. Qg4 {[%clk 0:00:09]}  h5 {[%clk 0:00:10]} 53. Qd1 {[%clk 0:00:09]}  Nxe4 {[%clk 0:00:10]} 54. Qd3 {[%clk 0:00:05]}  Nf6 {[%clk 0:00:09]} 55. Bg8+ {[%clk 0:00:00]}  Nxg8 {[%clk 0:00:09]} 0-1


[Site "https://www.chess.com"]

[Event "Titled Tuesday Blitz May 9 Late 2023"]
[White "Kavutskiy, Konstantin"]
[Black "Yanchenko, Roman"]
[WhiteFideId "2026384"]
[BlackFideId "4137329"]
[WhiteElo "2323"]
[BlackElo "2491"]
[Result "0-1"]
[Round "04"]
[TimeControl "180+2"]
[Date "2023.05.09"]
[WhiteClock "0:00:00"]
[BlackClock "0:00:31"]

1. d4 {[%clk 0:03:00]}  d5 {[%clk 0:03:00]} 2. c4 {[%clk 0:03:00]}  c6 {[%clk 0:03:00]} 3. Nf3 {[%clk 0:03:00]}  Nf6 {[%clk 0:03:00]} 4. e3 {[%clk 0:02:59]}  Bf5 {[%clk 0:03:00]} 5. Nc3 {[%clk 0:02:58]}  e6 {[%clk 0:03:01]} 6. Nh4 {[%clk 0:02:56]}  Be4 {[%clk 0:03:01]} 7. f3 {[%clk 0:02:56]}  Bg6 {[%clk 0:03:01]} 8. Qb3 {[%clk 0:02:56]}  Qb6 {[%clk 0:03:01]} 9. Nxg6 {[%clk 0:02:52]}  hxg6 {[%clk 0:03:01]} 10. Bd2 {[%clk 0:02:52]}  Nbd7 {[%clk 0:03:01]} 11. O-O-O {[%clk 0:02:49]}  Bd6 {[%clk 0:03:01]} 12. Qc2 {[%clk 0:02:40]}  Qa5 {[%clk 0:03:01]} 13. Nb5 {[%clk 0:02:19]}  Bb4 {[%clk 0:02:33]} 14. Bxb4 {[%clk 0:02:16]}  Qxb4 {[%clk 0:02:34]} 15. Nc7+ {[%clk 0:02:14]}  Ke7 {[%clk 0:02:35]} 16. Nxa8 {[%clk 0:02:14]}  Rxa8 {[%clk 0:02:32]} 17. Qb3 {[%clk 0:02:06]}  a5 {[%clk 0:02:26]} 18. Kc2 {[%clk 0:01:56]}  Qd6 {[%clk 0:02:08]} 19. g3 {[%clk 0:01:45]}  dxc4 {[%clk 0:01:59]} 20. Bxc4 {[%clk 0:01:44]}  b5 {[%clk 0:01:59]} 21. Be2 {[%clk 0:01:43]}  Nd5 {[%clk 0:01:58]} 22. Kb1 {[%clk 0:01:30]}  a4 {[%clk 0:01:56]} 23. Qd3 {[%clk 0:01:23]}  a3 {[%clk 0:01:57]} 24. b3 {[%clk 0:01:10]}  b4 {[%clk 0:01:33]} 25. Ka1 {[%clk 0:01:08]}  c5 {[%clk 0:01:24]} 26. Rc1 {[%clk 0:01:02]}  cxd4 {[%clk 0:01:14]} 27. Qxd4 {[%clk 0:01:01]}  Nc3 {[%clk 0:01:13]} 28. Qxd6+ {[%clk 0:00:59]}  Kxd6 {[%clk 0:01:14]} 29. Bc4 {[%clk 0:00:54]}  Ne5 {[%clk 0:01:12]} 30. f4 {[%clk 0:00:29]}  Nxc4 {[%clk 0:01:12]} 31. bxc4 {[%clk 0:00:30]}  Kc5 {[%clk 0:01:12]} 32. h4 {[%clk 0:00:25]}  Rd8 {[%clk 0:01:11]} 33. Rh2 {[%clk 0:00:24]}  Kxc4 {[%clk 0:01:10]} 34. Re1 {[%clk 0:00:21]}  f5 {[%clk 0:01:08]} 35. Reh1 {[%clk 0:00:19]}  Rd3 {[%clk 0:01:06]} 36. Re1 {[%clk 0:00:18]}  Kd5 {[%clk 0:00:57]} 37. Rg2 {[%clk 0:00:10]}  Ke4 {[%clk 0:00:56]} 38. Rh2 {[%clk 0:00:09]}  Kf3 {[%clk 0:00:55]} 39. Rc2 {[%clk 0:00:04]}  Kxg3 {[%clk 0:00:44]} 40. Rg1+ {[%clk 0:00:04]}  Kf3 {[%clk 0:00:44]} 41. Re1 {[%clk 0:00:04]}  Rd8 {[%clk 0:00:38]} 42. Rh2 {[%clk 0:00:03]}  Rd6 {[%clk 0:00:35]} 43. Rh3+ {[%clk 0:00:01]}  Ke4 {[%clk 0:00:31]} 44. Rhh1 {[%clk 0:00:00]}  Rd2 {[%clk 0:00:31]} 0-1


[Site "https://www.chess.com"]